[Event "Frauenbundesliga 2021-22"]
[Site "Germany"]
[Date "2022.05.25"]
[Round "9.3"]
[White "Melamed, Tatjana"]
[Black "Batsiashvili, Nino"]
[Result "1-0"]
[ECO "C78"]
[WhiteElo "2353"]
[BlackElo "2463"]
[Annotator "TA"]
[PlyCount "101"]
[EventDate "2021.11.26"]
[EventType "team-tourn"]
[EventCountry "GER"]
[SourceTitle "playchess.com"]
[Source "ChessBase"]
[SourceQuality "1"]
[WhiteTeam "Bad Koenigshofen"]
[BlackTeam "Schwaebisch Hall"]
[WhiteTeamCountry "GER"]
[BlackTeamCountry "GEO"]
[TimeControl "40/5400+30:1800+30"]

{[%evp 17,101,50,43,0,0,10,26,9,18,19,12,24,16,26,10,12,10,10,20,19,16,0,57,41,65,82,70,22,52,33,147,147,149,141,149,143,144,148,164,92,231,210,200,210,210,193,236,232,378,392,442,424,414,402,404,397,753,743,1019,1041,1064,1021,1020,935,1266,1260,5414,1106,1076,983,1589,1482,2238,2114,2163,1995,1718,1691,2642,2415,29977,29978,29978,29978,29984,4992]} 1. e4 {[%emt 0:00:06]} e5 {[%emt 0:00:03]} 2. Nf3 {[%emt 0:00:21]} Nc6 {[%emt 0:00:05]} 3. Bb5 {[%emt 0:00:13][%cal Bf1b5,Bb5a4,Ba4b3][%mdl 32]} a6 {[%emt 0:00:05]} 4. Ba4 {[%emt 0:00:04]} Nf6 {[%emt 0:00:07]} 5. O-O {[%emt 0:00:56]} b5 {[%emt 0:00:09]} 6. Bb3 {[%emt 0:00:13]} Bc5 {[%emt 0:00:08]} 7. a4 {[%emt 0:03:10]} Rb8 {[%emt 0:00:20]} 8. c3 {[%emt 0:00:13]} d6 {[%emt 0:00:08]} 9. d4 {[%emt 0:00:27]} Bb6 {[%emt 0:00:11]} 10. a5 {[%emt 0:02:31] C78: Ruy Lopez: Archangelsk and Möller Defences.} Ba7 {[%emt 0:00:06]} (10... Nxa5 11. Rxa5 Bxa5 12. dxe5 $14) (10... Bxa5 $2 11. dxe5 (11. d5 Ne7 $18) 11... dxe5 12. Qxd8+ Kxd8 13. Bd5 (13. Bxf7 Bb6 $16) 13... Nxd5 14. exd5 $18) 11. h3 {[%emt 0:00:14]} Bb7 {[%emt 0:01:06]} 12. Be3 {[%emt 0:03:35] Threatens to win with d5. White has an edge.} Nxe4 {[%emt 0:01:58]} 13. Re1 {[%emt 0:03:03]} (13. d5 {is more complex.} Bxe3 14. dxc6 Nxf2 15. Qe2) 13... exd4 {[%emt 0:04:44]} 14. cxd4 {[%emt 0:00:24]} d5 {[%emt 0:09:06]} 15. Nc3 {[%emt 0:05:58] Strongly threatening Nxe4.} Ne7 {[%emt 0:01:52]} 16. Nxe4 {[%emt 0:00:13]} dxe4 {[%emt 0:00:12]} 17. Ng5 {[%emt 0:00:15]} Bd5 {[%emt 0:05:20] [#]} 18. Nxe4 $1 {[%emt 0:02:24]} O-O {[%emt 0:16:39]} (18... Bxe4 19. Qg4 Bd5 20. Bg5 $17) 19. Bg5 {[%emt 0:08:39] Hoping for Bxd5.} f6 {[%emt 0:04:49]} ({Black should play} 19... Bxb3 $11 20. Qxb3 h6 21. Bxe7 Qxe7) 20. Bf4 $14 {[%emt 0:10:39] [#]} Bxb3 $146 {[%emt 0:06:01]} ({Predecessor:} 20... Rf7 21. Rc1 Rc8 22. Bd6 cxd6 23. Rxc8 Qxc8 24. Bxd5 Nxd5 25. Nxd6 Qd7 26. Nxf7 Kxf7 {½-½ (59) Ragger,M (2668)-Andersen,M (2575) Terme Catez 2021}) 21. Qxb3+ {[%emt 0:00:05]} Qd5 {[%emt 0:00:06]} 22. Qf3 {[%emt 0:08:44]} (22. Qa3 $14 b4 23. Qd3) 22... Rbc8 {[%emt 0:03:36]} 23. Rad1 {[%emt 0:12:12]} Kh8 {[%emt 0:09:08] [#]} (23... f5 $14 24. Nf6+ Rxf6 25. Rxe7 Qxf3 26. gxf3 Kf8 27. Rxc7 Rxc7 28. Bxc7 Rc6) 24. Nd6 $1 $16 {[%emt 0:11:03][%mdl 512]} cxd6 {[%emt 0:03:31]} (24... Qxf3 25. gxf3) 25. Rxe7 {[%emt 0:00:18]} Qxf3 {[%emt 0:00:04]} 26. gxf3 {[%emt 0:00:02]} Bb8 {[%emt 0:00:10]} 27. Rde1 {[%emt 0:06:24] White is much more active.} Rc4 {[%emt 0:04:45]} 28. Rf7 $40 {[%emt 0:03:30][%mdl 128] White attacks with force.} Kg8 {[%emt 0:00:36] Black cannot hold the game after this.} (28... Rg8 $16) 29. Rd7 {[%emt 0:01:43] Black must now prevent Ree7.} Rc7 {[%emt 0:02:43] [#]} 30. Rxc7 {[%emt 0:05:16]} ({Worse is} 30. Rxd6 Ra7 31. Bg3 Bxd6 32. Bxd6 Rd8 $17) 30... Bxc7 $18 {[%emt 0:00:02][%mdl 4096] Endgame KRB-KRB} 31. b4 {[%emt 0:00:05]} g5 {[%emt 0:05:09]} 32. Rc1 {[%emt 0:00:54]} Bb8 {[%emt 0:03:00]} (32... gxf4 $142 33. Rxc7 d5) 33. Be3 {[%emt 0:01:03]} f5 {[%emt 0:00:14]} 34. Rc6 {[%emt 0:03:40]} ({Not} 34. Bxg5 Kf7 $18) 34... f4 {[%emt 0:00:22]} 35. Bd2 {[%emt 0:00:03]} Kf7 {[%emt 0:02:57]} 36. Rxa6 {[%emt 0:01:33]} d5 $2 {[%emt 0:03:41]} (36... Bc7 37. h4 h6) 37. Rb6 {[%emt 0:00:54]} Rc8 {[%emt 0:02:11]} 38. Rxb5 {[%emt 0:01:02]} Ke6 {[%emt 0:00:05]} 39. Rb6+ {[%emt 0:02:47]} Kd7 {[%emt 0:05:26]} 40. b5 {[%emt 0:02:36]} Bd6 {[%emt 0:01:07]} 41. a6 {[%emt 0:31:14]} Rc7 {[%emt 0:30:33] [#]} 42. Kf1 {[%emt 0:01:30]} (42. Rxd6+ $142 $1 Kxd6 43. b6) 42... Ra7 {[%emt 0:02:51]} 43. Ke2 {[%emt 0:01:02]} h5 {[%emt 0:00:34]} 44. Kd3 {[%emt 0:00:19]} Kc7 {[%emt 0:00:23]} 45. Ba5 {[%emt 0:00:49] Intending Rb7+ and mate.} Kd7 {[%emt 0:00:18]} 46. Rc6 {[%emt 0:00:25]} Ra8 {[%emt 0:00:12]} 47. Bb6 {[%emt 0:00:00]} Rb8 {[%emt 0:00:00]} 48. Bc5 {[%emt 0:00:00]} Bc7 {[%emt 0:00:00]} 49. a7 {[%emt 0:00:00] White mates.} Ra8 {[%emt 0:00:00]} 50. Rg6 {[%emt 0:00:00]} Kc8 {[%emt 0:00:00]} 51. b6 {[%emt 0:00:00] Weighted Error Value: White=0.10 (very precise) /Black=0.32} (51. Rg7 $142 Ba5 52. b6 Bxb6 53. Bxb6 Rxa7 54. Rxa7 Kb8 55. Re7 g4 56. hxg4) 1-0

[Event "Frauenbundesliga 2021-22"]
[Site "Germany"]
[Date "2022.05.25"]
[Round "9.4"]
[White "Javakhishvili, Lela"]
[Black "Savina, Anastasia"]
[Result "1/2-1/2"]
[ECO "E60"]
[WhiteElo "2480"]
[BlackElo "2348"]
[Annotator "TA"]
[PlyCount "82"]
[EventDate "2021.11.26"]
[EventType "team-tourn"]
[EventCountry "GER"]
[SourceTitle "playchess.com"]
[Source "ChessBase"]
[SourceQuality "1"]
[WhiteTeam "Schwaebisch Hall"]
[BlackTeam "Bad Koenigshofen"]
[WhiteTeamCountry "GEO"]
[TimeControl "40/5400+30:1800+30"]

{[%evp 9,82,24,19,2,14,10,32,28,35,34,40,33,45,14,30,-13,-6,-12,-4,-6,-5,-4,-11,-11,-7,-4,0,0,0,-55,0,0,0,0,0,-35,-20,-44,-10,-9,-10,-4,0,-2,37,45,61,59,45,29,45,10,25,20,24,0,0,0,0,0,0,0,0,0,0,0,0,0,0,0,0,0,0,0,0]} 1. d4 {[%emt 0:00:04]} Nf6 {[%emt 0:00:15]} 2. c4 {[%emt 0:00:11]} g6 {[%emt 0:00:11]} 3. g3 {[%emt 0:00:27]} c5 {[%emt 0:03:40]} 4. dxc5 {[%emt 0:00:30]} Bg7 {[%emt 0:05:59]} 5. Nc3 {[%emt 0:02:09]} Na6 {[%emt 0:07:40]} 6. Bg2 {[%emt 0:01:49] E60: King's Indian: Unusual lines and Fianchetto Variation without Nc3.} Nxc5 {[%emt 0:00:35]} 7. Nh3 {[%emt 0:06:05]} h5 {[%emt 0:09:59] [#]} 8. Ng5 $146 {[%emt 0:15:31] White is slightly better.} ({Predecessor:} 8. Nf4 h4 9. Be3 Qa5 10. Bd2 Qd8 11. b4 g5 12. Nh3 g4 13. bxc5 gxh3 14. Bf3 {0-1 (45) Bajramovic,H (2250)-Rajkovic,D (2449) Zenica 2003}) 8... d6 {[%emt 0:20:51]} 9. Be3 {[%emt 0:09:21] [#] Hoping for Bxc5.} Qa5 {[%emt 0:13:48]} 10. h3 {[%emt 0:14:39]} Ne6 {[%emt 0:10:39]} 11. Nxe6 {[%emt 0:12:16]} Bxe6 {[%emt 0:00:09]} 12. Bxb7 {[%emt 0:00:51]} Rb8 {[%emt 0:03:05]} 13. Bc6+ {[%emt 0:00:11]} Bd7 {[%emt 0:07:29]} 14. Bxd7+ {[%emt 0:01:41]} Nxd7 {[%emt 0:00:06]} 15. O-O {[%emt 0:03:39]} Rxb2 {[%emt 0:08:54]} 16. Nd5 {[%emt 0:00:14]} e6 {[%emt 0:01:49]} 17. Nf4 {[%emt 0:07:28]} ({But not} 17. Bd4 Rd2 18. Bxg7 Rxd1 19. Rfxd1 Rg8 20. Nf6+ Nxf6 21. Bxf6 Qf5 $17) 17... Rb7 {[%emt 0:00:44]} 18. Rc1 {[%emt 0:02:18]} Qa6 {[%emt 0:02:01]} 19. Qd3 {[%emt 0:04:47]} ({White should play} 19. c5 $11 dxc5 20. Qd3 (20. Bxc5 Nxc5 21. Rxc5 O-O $11) 20... Qxd3 21. Nxd3) 19... Nc5 {[%emt 0:01:27]} (19... Ne5 $1 $15 20. Qe4 O-O) 20. Bxc5 $11 {[%emt 0:02:32]} dxc5 {[%emt 0:00:01]} 21. Qe4 {[%emt 0:00:51][%cal Of4g6]} O-O {[%emt 0:00:30]} 22. Nd3 {[%emt 0:00:16]} Rc8 {[%emt 0:00:58]} 23. Rb1 {[%emt 0:02:30]} Rb6 {[%emt 0:00:06]} 24. Rxb6 {[%emt 0:00:27]} axb6 {[%emt 0:00:42]} 25. Rb1 {[%emt 0:00:07]} Bd4 {[%emt 0:00:40]} (25... Qxa2 26. Rxb6 Rc7 27. Kg2 $14) 26. Rb5 {[%emt 0:02:19]} Qxa2 {[%emt 0:00:40]} 27. Rxb6 {[%emt 0:00:27]} Qa1+ {[%emt 0:00:29]} (27... Qxc4 $2 28. e3 $18) 28. Kg2 {[%emt 0:00:38][%cal Bg1g2,Bg2f3,Bf3e4][%mdl 32] aiming for e3.} Rc7 {[%emt 0:00:32]} 29. Rb8+ {[%emt 0:03:14]} Kg7 $1 {[%emt 0:00:08]} 30. Nf4 {[%emt 0:04:12][%cal Of4h5] [#] Nxh5+! is the strong threat.} Be5 {[%emt 0:00:48]} ({Resist} 30... Qe1 31. e3 Bf6 32. Rb7 Rxb7 33. Qxb7 $16) 31. Ra8 {[%emt 0:00:43]} Qd4 {[%emt 0:00:25]} 32. Kf3 {[%emt 0:01:46]} Bxf4 {[%emt 0:00:32] The position is equal.} 33. Qxf4 {[%emt 0:00:40] Really sharp!} e5 {[%emt 0:00:36]} 34. Qxd4 {[%emt 0:01:19]} cxd4 {[%emt 0:00:03][%mdl 4096] Endgame KR-KR} 35. Ra5 {[%emt 0:00:25]} Kf6 {[%emt 0:00:53]} 36. Ke4 {[%emt 0:01:06] And now c5 would win.} Rxc4 {[%emt 0:00:09]} 37. Ra6+ {[%emt 0:00:05]} Kg7 {[%emt 0:00:30]} 38. Kxe5 {[%emt 0:00:44]} Rc2 {[%emt 0:00:08]} 39. Kxd4 {[%emt 0:00:32]} Rxe2 {[%emt 0:00:05]} 40. f4 {[%emt 0:00:24]} Rh2 {[%emt 0:01:40]} 41. h4 {[%emt 0:04:07]} Re2 {[%emt 0:06:06] Weighted Error Value: White=0.10 (very precise) /Black=0.07 (flawless)} 1/2-1/2

[Event "Frauenbundesliga 2021-22"]
[Site "Germany"]
[Date "2022.05.25"]
[Round "9.5"]
[White "Belenkaya, Dina"]
[Black "Arabidze, Meri"]
[Result "0-1"]
[ECO "B30"]
[WhiteElo "2254"]
[BlackElo "2436"]
[Annotator "TA"]
[PlyCount "90"]
[EventDate "2021.11.26"]
[EventType "team-tourn"]
[EventCountry "GER"]
[SourceTitle "playchess.com"]
[Source "ChessBase"]
[SourceQuality "1"]
[WhiteTeam "Bad Koenigshofen"]
[BlackTeam "Schwaebisch Hall"]
[WhiteTeamCountry "ISR"]
[BlackTeamCountry "GEO"]
[TimeControl "40/5400+30:1800+30"]

{[%evp 16,90,16,13,12,0,0,-6,-6,-10,-11,-7,0,0,0,-16,0,0,0,0,0,0,0,0,0,0,6,0,42,-11,-9,-48,-37,-67,-25,-237,-218,-357,-227,-233,-214,-280,-286,-278,-284,-394,-356,-823,-767,-857,-486,-485,-413,-1113,-1020,-964,-520,-1236,-1122,-5135,-4370,-29964,-29967,-29968,-29970,-29971,-29972,-29972,-29973,-29973,-29974,-29973,-29975,-29973,-29969,-29973,-29974]} 1. e4 {[%emt 0:00:06]} c5 {[%emt 0:00:07]} 2. Nf3 {[%emt 0:00:07]} e6 {[%emt 0:00:07]} 3. g3 {[%emt 0:00:29]} Nc6 {[%emt 0:00:15]} 4. Bg2 {[%emt 0:00:10]} Nf6 {[%emt 0:00:05]} 5. d3 {[%emt 0:00:21]} d6 {[%emt 0:01:54]} 6. O-O {[%emt 0:01:03]} Be7 {[%emt 0:00:05]} 7. c3 {[%emt 0:02:45]} O-O {[%emt 0:00:24]} 8. Re1 {[%emt 0:01:43]} Bd7 {[%emt 0:00:14]} 9. d4 {[%emt 0:00:53]} cxd4 {[%emt 0:00:25] B30: Sicilian: 2...Nc6 3 Bb5, lines without ...g6.} 10. cxd4 {[%emt 0:00:35]} d5 {[%emt 0:00:07]} 11. e5 {[%emt 0:00:18]} Ne4 {[%emt 0:00:03] The position is equal.} 12. Nbd2 {[%emt 0:01:17]} Nxd2 {[%emt 0:00:43]} 13. Bxd2 {[%emt 0:00:18]} Qb6 {[%emt 0:00:08]} 14. Bc3 {[%emt 0:02:13]} a5 {[%emt 0:00:12] [#]} 15. a4 $146 {[%emt 0:07:31]} ({Predecessor:} 15. Bf1 a4 16. a3 Na5 17. Bd3 Nb3 18. Rb1 Bb5 19. Bc2 Bc4 20. Nd2 Nxd2 21. Qxd2 {½-½ (60) Bailet,P (2520)-Terrieux,K (2448) Playchess.com INT 2021}) 15... Rfc8 {[%emt 0:03:05]} 16. Bf1 {[%emt 0:01:42]} Nb4 {[%emt 0:01:20]} 17. Re3 {[%emt 0:05:03]} Qd8 {[%emt 0:03:04]} 18. Ne1 {[%emt 0:01:57]} Qe8 {[%emt 0:04:42]} 19. f4 {[%emt 0:01:24]} b5 {[%emt 0:09:24]} 20. axb5 {[%emt 0:01:17]} Bxb5 {[%emt 0:00:15]} 21. Bh3 {[%emt 0:00:32]} Ra6 {[%emt 0:09:33]} 22. g4 {[%emt 0:07:11]} (22. f5 $14) 22... Bc4 $11 {[%emt 0:03:34]} 23. Bg2 {[%emt 0:03:37]} a4 {[%emt 0:11:01]} 24. Rh3 $1 {[%emt 0:01:24]} Qb5 {[%emt 0:06:14]} (24... g6 $5 {[%cal Rb4a2]}) 25. Qf3 $2 {[%emt 0:10:11] [#] This costs White the game.} (25. f5 $11) 25... Na2 $1 $19 {[%emt 0:03:50] ...a3 is the strong threat.} 26. f5 {[%emt 0:18:20]} (26. Bf1 $142 Nxc3 27. Bxc4 Qxb2 28. Qxc3 Qxc3 29. Rxc3 dxc4 30. Kf2) 26... Nxc3 {[%emt 0:16:42]} 27. Qxc3 {[%emt 0:01:37]} Rb8 {[%emt 0:01:46]} 28. f6 {[%emt 0:03:36] Threatens to win with Qc2.} Bf8 {[%emt 0:00:12]} 29. fxg7 {[%emt 0:22:10]} Bxg7 {[%emt 0:01:19]} 30. Qc2 {[%emt 0:00:01]} Qxb2 {[%emt 0:03:22]} 31. Qxh7+ $2 {[%emt 0:00:07]} (31. Qxb2 Rxb2 32. Rha3) 31... Kf8 {[%emt 0:00:02]} 32. Nc2 {[%emt 0:05:11]} Rb3 {[%emt 0:05:06]} 33. Qh4 {[%emt 0:00:22][%cal Rh4d8] [#]} Ke8 {[%emt 0:02:29] Against Qd8+} 34. Qg5 {[%emt 0:00:09]} (34. Qh7 $142 Kf8 35. Qh4) 34... Rxh3 {[%emt 0:03:01]} 35. Bxh3 {[%emt 0:01:22]} Bf8 {[%emt 0:04:11] A strong pair of Bishops.} 36. Rc1 {[%emt 0:00:10]} (36. Qc1 $142 a3 37. Bf1 Bxf1 38. Qxb2 axb2 39. Rb1) 36... a3 {[%emt 0:01:17] And now ...a2 would win.} 37. Qe3 {[%emt 0:01:06]} a2 {[%emt 0:00:25]} 38. Bf1 {[%emt 0:00:25]} a1=Q {[%emt 0:01:36] Black mates.} 39. Nxa1 {[%emt 0:00:21]} Rxa1 {[%emt 0:00:04]} 40. Rxa1 {[%emt 0:00:38]} Qxa1 {[%emt 0:00:07][%csl Gc4][%cal Ra1f1]} 41. Qf2 {[%emt 0:30:06]} Bxf1 {[%emt 0:30:15]} 42. Qxf1 {[%emt 0:00:05]} Qxd4+ {[%emt 0:00:04]} 43. Kh1 {[%emt 0:00:10]} Qe4+ {[%emt 0:00:04]} 44. Qg2 {[%emt 0:00:12]} Qxg2+ {[%emt 0:00:20]} 45. Kxg2 {[%emt 0:00:06]} Bg7 {[%emt 0:00:03] Weighted Error Value: White=0.94/Black=0.37} 0-1

[Event "Frauenbundesliga 2021-22"]
[Site "Germany"]
[Date "2022.05.25"]
[Round "9.6"]
[White "Atalik, Ekaterina"]
[Black "Obolentseva, Alexandra"]
[Result "1-0"]
[ECO "E61"]
[WhiteElo "2414"]
[BlackElo "2305"]
[Annotator "TA"]
[PlyCount "49"]
[EventDate "2021.11.26"]
[EventType "team-tourn"]
[EventCountry "GER"]
[SourceTitle "playchess.com"]
[Source "ChessBase"]
[SourceQuality "1"]
[WhiteTeam "Schwaebisch Hall"]
[BlackTeam "Bad Koenigshofen"]
[WhiteTeamCountry "TUR"]
[BlackTeamCountry "RUS"]
[TimeControl "40/5400+30:1800+30"]

{[%evp 16,49,41,40,48,58,63,48,168,177,172,180,211,216,333,316,283,295,443,436,420,301,305,317,463,466,454,461,1164,570,2360,2329,2096,848,2467,1842]} 1. d4 {[%emt 0:00:03] ChessBase II} Nf6 {[%emt 0:00:07]} 2. c4 {[%emt 0:00:16]} g6 {[%emt 0:00:16]} 3. Nf3 {[%emt 0:00:28]} Bg7 {[%emt 0:00:07]} 4. Nc3 {[%emt 0:00:09]} d6 {[%emt 0:00:15]} 5. Bf4 {[%emt 0:00:31]} O-O {[%emt 0:00:16]} 6. e3 {[%emt 0:00:36]} Nh5 {[%emt 0:08:52]} 7. Bg5 {[%emt 0:00:35]} h6 {[%emt 0:09:44]} 8. Bh4 {[%emt 0:00:26]} g5 {[%emt 0:01:00] [#]} 9. Nd2 $1 {[%emt 0:00:30]} Nf6 {[%emt 0:02:29] E61: King's Indian: Early deviations for White, including Smyslov System.} 10. Bg3 {[%emt 0:00:09]} Bf5 {[%emt 0:01:46]} 11. h4 {[%emt 0:02:50] [#]} Bg6 $146 {[%emt 0:01:40]} (11... g4 $14) ({Predecessor:} 11... e6 12. hxg5 hxg5 13. Nf3 Nh7 14. Qb3 b6 15. O-O-O Nc6 16. Qa4 Ne7 17. e4 Bg6 {1-0 (38) Khismatullin,D (2662)-Nevednichy,V (2534) Aix les Bains 2011 CBM 142 Extra [ChessBase II]}) 12. hxg5 $18 {[%emt 0:04:39]} hxg5 {[%emt 0:00:07] [#]} 13. Nf3 $1 {[%emt 0:04:45]} Nh7 {[%emt 0:00:10]} 14. Bd3 {[%emt 0:03:24]} f5 {[%emt 0:05:03] [#]} (14... Bxd3 $142 15. Qxd3 f5) 15. Rxh7 $1 {[%emt 0:06:45][%mdl 512]} Bxh7 {[%emt 0:00:06]} (15... Kxh7 16. Nxg5+) 16. Nxg5 {[%emt 0:00:21] Threatens to win with Qh5.} Rf6 {[%emt 0:03:14]} (16... Bg6 $142 17. c5 (17. Ne6 Qd7 $16) 17... e5 18. Bc4+ Kh8) 17. Nxh7 {[%emt 0:04:14]} ({Not} 17. Qh5 Bg6 18. Qh4 c6 $14) 17... Kxh7 {[%emt 0:02:24]} 18. Qh5+ {[%emt 0:07:56]} Kg8 {[%emt 0:00:08]} 19. Bxf5 {[%emt 0:02:38] Black must now prevent Ne4.} Rh6 {[%emt 0:02:01]} (19... Nd7 $142 20. Bh7+ Kf8) 20. Qg4 {[%emt 0:04:46] And now Bf4 would win. White is clearly winning.} Qe8 {[%emt 0:17:47]} (20... Rh1+ $2 21. Ke2 Rh6 22. Bf4) 21. Bf4 {[%emt 0:13:11]} Rh8 {[%emt 0:02:06]} (21... Rh1+ $2 22. Ke2 Qh5 23. Rxh1 Qxh1 24. Nd5) (21... Qh5 $142) 22. Nd5 {[%emt 0:06:13]} (22. Be6+ $142 Kf8 23. Bg5) 22... Kf8 {[%emt 0:12:02]} 23. Nxc7 {[%emt 0:01:54] White threatens Ne6+ and mate.} Qf7 {[%emt 0:00:05]} 24. Be6 {[%emt 0:04:07]} (24. Bg6 $142 Na6 25. Ne6+ Kg8 26. Bxf7+ Kxf7 27. Nxg7) 24... Qf6 {[%emt 0:00:37]} 25. Bg5 {[%emt 0:01:54] Black did not feel at home in the position after the opening.  Weighted Error Value: White=0.37/Black=0.61} 1-0

[Event "Frauenbundesliga 2021-22"]
[Site "Germany"]
[Date "2022.05.25"]
[Round "9.7"]
[White "Unuk, Laura"]
[Black "Socko, Monika"]
[Result "0-1"]
[ECO "A10"]
[WhiteElo "2338"]
[BlackElo "2384"]
[Annotator "TA"]
[PlyCount "104"]
[EventDate "2021.11.26"]
[EventType "team-tourn"]
[EventCountry "GER"]
[SourceTitle "playchess.com"]
[Source "ChessBase"]
[SourceQuality "1"]
[WhiteTeam "TuRa Harksheide"]
[BlackTeam "Hamburger SK"]
[WhiteTeamCountry "SLO"]
[BlackTeamCountry "POL"]
[TimeControl "40/5400+30:1800+30"]

{[%evp 9,104,0,0,0,0,0,0,-10,-4,-17,-15,-35,27,5,6,-13,0,-11,-10,-39,-23,-64,-58,-65,-49,-141,-145,-131,-113,-113,-113,-113,-97,-85,-74,-136,-123,-129,-128,-120,-87,-74,-91,-67,-67,-593,-593,-564,-535,-742,-698,-526,-453,-446,-453,-420,0,0,0,0,0,0,0,0,0,0,0,-321,-293,-312,-315,-312,-308,-349,-339,-761,-717,-12837,-12838,-12838,-1421,-12839,-12839,-12840,-12840,-12841,-12841,-12841,-12841,-12842,-12843,-12843,-12843,-12844,-12844,-12845,-12846]} 1. c4 {[%emt 0:00:05]} e6 {[%emt 0:00:05]} 2. Nc3 {[%emt 0:00:22]} b6 {[%emt 0:01:28]} 3. e4 {[%emt 0:13:32]} Bb7 {[%emt 0:00:21]} 4. a3 {[%emt 0:02:31]} c5 {[%emt 0:01:41]} 5. g3 {[%emt 0:04:30]} Nc6 {[%emt 0:01:59]} 6. Bg2 {[%emt 0:01:43] A10: English Opening: Unusual Replies for Black.} g6 {[%emt 0:02:19]} 7. d3 {[%emt 0:01:23]} Bg7 {[%emt 0:01:13] [#]} 8. Nf3 $146 {[%emt 0:10:17] The position is equal.} ({Predecessor:} 8. Nge2 d6 9. Be3 Nd4 10. Qa4+ Bc6 11. Bxd4 Bxa4 12. Bxg7 Bc6 13. Bxh8 f6 14. h4 {0-1 (42) Hillarp Persson,T (2543)-Gopal,G (2548) Dresden 2008}) 8... Nge7 {[%emt 0:01:30]} 9. Bg5 {[%emt 0:11:10]} h6 {[%emt 0:06:17]} 10. Bf4 {[%emt 0:00:04]} e5 {[%emt 0:01:57]} (10... g5 $15 11. Be3 O-O) 11. Be3 {[%emt 0:06:40]} Nd4 {[%emt 0:00:36]} 12. h4 {[%emt 0:09:48]} O-O {[%emt 0:08:52]} 13. h5 {[%emt 0:06:01]} g5 {[%emt 0:09:43]} 14. Nd5 {[%emt 0:12:56][%cal Oe3g5]} f5 {[%emt 0:13:11]} 15. Bxd4 {[%emt 0:01:04]} exd4 {[%emt 0:04:24]} 16. Nd2 {[%emt 0:01:02]} Nxd5 {[%emt 0:03:40]} 17. exd5 {[%emt 0:03:42]} ({White should try} 17. cxd5 $15 Ba6 18. Qb3) 17... Re8+ $17 {[%emt 0:03:06]} 18. Kf1 {[%emt 0:00:03]} g4 {[%emt 0:00:17] Prevents Qf3.} 19. b4 {[%emt 0:05:03]} d6 {[%emt 0:02:30]} 20. Nb3 {[%emt 0:00:04]} cxb4 {[%emt 0:11:32]} 21. axb4 {[%emt 0:00:05]} a5 {[%emt 0:00:04][%cal Ba7a5,Ba5a4][%mdl 32]} 22. b5 {[%emt 0:03:11]} (22. bxa5 $142 bxa5 23. Nc1) 22... Qg5 {[%emt 0:03:32]} (22... a4 23. Nc1 $15) 23. Qd2 {[%emt 0:04:40] Inhibits f4.} a4 {[%emt 0:02:13]} 24. Qxg5 {[%emt 0:00:10]} hxg5 {[%emt 0:00:01]} 25. Nc1 {[%emt 0:01:11]} a3 {[%emt 0:08:03] Black is much more active. The white rooks are badly placed.} 26. Ra2 {[%emt 0:01:00]} Ra4 {[%emt 0:01:16][%cal Ba8a4,Ba4b4,Bb4b2][%mdl 32]} 27. Ne2 $2 {[%emt 0:00:39][%mdl 8192]} (27. Nb3 $15) 27... Rb4 $19 {[%emt 0:00:56] ( -> ...Rb1+)} 28. Ke1 {[%emt 0:00:03] [#]} f4 $1 {[%emt 0:11:44]} (28... Rb2 29. Rxb2 axb2 30. Kd2 $11) 29. Be4 {[%emt 0:01:12] [#]} Rxe4 $1 {[%emt 0:00:00][%mdl 512]} 30. dxe4 {[%emt 0:00:05] Hoping for Kd2.} d3 {[%emt 0:00:00]} 31. Nc1 {[%emt 0:00:55]} Bc3+ {[%emt 0:00:43]} 32. Kd1 {[%emt 0:00:03] [#]} Rb2 $2 {[%emt 0:00:27]} (32... d2 $2 33. Ne2 Rb1+ 34. Kc2 Rxh1 35. Nxc3 $16) (32... Rb1 $1 $19 {And now ...Bb4 would win.} 33. Rg1 (33. Rxa3 $2 Bb2 $19) 33... Bb4) 33. Rxa3 $11 {[%emt 0:01:03]} Rd2+ {[%emt 0:00:10]} 34. Ke1 {[%emt 0:00:03]} Bb4 {[%emt 0:00:20]} 35. Ra4 {[%emt 0:00:58]} Rb2+ {[%emt 0:00:24]} 36. Kd1 {[%emt 0:00:02]} d2 {[%emt 0:00:45]} 37. h6 {[%emt 0:00:03]} Ba5 {[%emt 0:00:53]} 38. h7+ $2 {[%emt 0:00:26][%mdl 8192] White is now going downhill.} (38. Rxa5 $11 {and White is okay.} bxa5 39. Rh5 (39. h7+ $2 Kh8 $19) 39... dxc1=Q+ 40. Kxc1 Rxf2 41. Rxg5+ Kh7 42. Rxg4 fxg3 43. Rxg3 Kxh6 44. Rg8) 38... Kh8 $19 {[%emt 0:00:00]} 39. Rxa5 {[%emt 0:01:35]} bxa5 {[%emt 0:00:16] The board is on fire.} 40. gxf4 {[%emt 0:00:31]} gxf4 {[%emt 0:00:21][%mdl 4096] Endgame KRB-KRN} (40... dxc1=Q+ 41. Kxc1 Rb4 42. fxg5 Rxc4+ 43. Kb2 Rxe4 44. g6 Re2+ 45. Ka3 Ra2+ 46. Kxa2 $11) 41. c5 {[%emt 0:04:51]} dxc5 {[%emt 0:12:40]} ({Worse is} 41... dxc1=B 42. Kxc1 Rxb5 43. cxd6 $17) ({And not} 41... dxc1=N 42. cxd6 Bc8 43. Kxc1 $15) ({Inferior is} 41... dxc1=R+ 42. Kxc1 Rxb5 43. cxd6 $17) 42. d6 $2 {[%emt 0:01:40]} (42. Rh4 dxc1=N 43. Kxc1 Rxb5 44. Rxg4) 42... Bc8 {[%emt 0:01:01] Threatens to win with ...g3. Black is clearly winning.} 43. e5 {[%emt 0:18:16]} g3 {[%emt 0:05:09]} 44. fxg3 {[%emt 0:00:10]} Bg4+ {[%emt 0:02:52]} 45. Ne2 {[%emt 0:00:05]} f3 {[%emt 0:00:02][%csl Gg4][%cal Rf3e2]} 46. Rh2 {[%emt 0:00:43]} fxe2+ {[%emt 0:02:04]} 47. Rxe2 {[%emt 0:00:04] KRB-KR} Rb1+ {[%emt 0:00:04]} 48. Kxd2 {[%emt 0:00:06]} Rb2+ {[%emt 0:00:03]} 49. Kd3 {[%emt 0:03:23]} Bxe2+ {[%emt 0:01:33]} 50. Kc3 {[%emt 0:00:03]} Rxb5 {[%emt 0:00:04]} 51. e6 {[%emt 0:00:03]} Bg4 {[%emt 0:00:25]} 52. d7 {[%emt 0:00:08]} Rb8 {[%emt 0:00:05] Weighted Error Value: White=0.73/Black=0.14 (very precise)} 0-1